Cogmind - Beta 16.1 @@@ ROGUE MODE // 2026.03.28 @ 04:18:51 Player: Skrub Result: Destroyed by C9-R4Q(j) with Overtuned Pulse Rifle Performance ------------- Evolutions (1) 500 Regions Visited (6) 1200 Robots Destroyed (63) 315 Value Destroyed (1690) 1690 Prototype IDs (20) 400 Alien Tech Used (0) 0 Bonus (730) 730 TOTAL SCORE: 4835 Bonus ------- Follower Combat Kills 47 Registered with UFD 300 Met Optimus in HQ 500 Friendly Fire -117 Cogmind --------- Core Integrity 0/400 Matter 296/300 Energy 113/290 System Corruption 0% Temperature Warning (328) Movement Treading (160) Ox1 Location -9/Scraptown Parts ------- > --- POWER (1) -------- Improved Deuterium Engine > --- PROPULSION (2) --- Overtuned Treads > --- UTILITY (3) ------ Scrap Suit Small Storage Unit > --- WEAPON (3) ------- Overtuned Pulse Rifle Overtuned Pulse Rifle Overtuned Barrage Gun > --- INVENTORY (8) ---- Improved Heat Sink Active Sensor Suite Surveybot 17 Chip Plasma Cutter CPS Tube (2) DRS Beacon (Ready) Peak State ------------ > --- POWER ------------ Deuterium Engine > --- PROPULSION ------- Improved Treads Medium Treads > --- UTILITY ---------- Improved Heat Sink Small Storage Unit Experimental Targeting Computer > --- WEAPON ----------- Improved Medium Laser Heavy Particle Cannon Ion Burst Cannon > --- INVENTORY -------- Active Sensor Suite Beam Rifle Beam Rifle Plasma Cutter CPS Tube DRS Beacon [Rating: 35] Favorites ----------- Power Deuterium Engine Engine Deuterium Engine Propulsion Improved Treads Treads Improved Treads Leg Overtuned Titanium Leg Wheel Wheel Hover Unit Aerolev Unit Flight Unit Cesium-ion Thruster Utility Small Storage Unit Device Improved Heat Sink Storage Small Storage Unit Processor Experimental Targeting Computer Weapon Improved Medium Laser Energy Gun Improved Medium Laser Energy Cannon Ion Burst Cannon Ballistic Gun Overtuned Barrage Gun Launcher Grenade Launcher Special Weapon Plasma Cutter Build | -11 -10 -10 -9 -9 -9 -9 ------- Run | Yrd Mat Min Mat Sto Rec Scr Slots Evolved 2 | . . . 2 . . . Power . | . . . . . . . Propulsion . | . . . . . . . Utility 1 | . . . 1 . . . Weapon 1 | . . . 1 . . . Parts Attached 56 | 1 . 11 21 12 3 8 Power 7 | 1 . 1 3 1 . 1 Engine 7 | 1 . 1 3 1 . 1 Core . | . . . . . . . Reactor . | . . . . . . . Propulsion 18 | . . 4 6 2 1 5 Treads 11 | . . 2 4 1 1 3 Leg 2 | . . . . . . 2 Wheel 1 | . . 1 . . . . Hover 1 | . . . 1 . . . Flight 3 | . . 1 1 1 . . Utility 13 | . . 1 5 4 2 1 Device 8 | . . . 4 3 . 1 Storage 4 | . . 1 1 . 2 . Processor 1 | . . . . 1 . . Hackware . | . . . . . . . Protection . | . . . . . . . Artifact . | . . . . . . . Weapon 18 | . . 5 7 5 . 1 Energy Gun 12 | . . 3 5 3 . 1 Energy Cannon 3 | . . 1 1 1 . . Ballistic Gun 1 | . . . 1 . . . Ballistic Cannon . | . . . . . . . Launcher 1 | . . 1 . . . . Special Weapon 1 | . . . . 1 . . Impact Weapon . | . . . . . . . Slashing Weapon . | . . . . . . . Piercing Weapon . | . . . . . . . Special Melee Weapon . | . . . . . . . Unidentified Prototypes 7 | . . . 4 3 . . Corrupted Parts 3 | . . 3 . . . . System Corruption 11 | . . 11 . . . . Parts Lost 14 | . . 5 4 1 . 4 Power 4 | . . 1 1 1 . 1 Propulsion 4 | . . 2 1 . . 1 Utility 1 | . . . 1 . . . Weapon 5 | . . 2 1 . . 2 Highest Loss Streak 5 | . . 5 2 1 . 4 To Critical Strikes 1 | . . . 1 . . . Average Backups 5 | 2 5 4 4 5 5 6 Power . | . . . 1 . . . Propulsion . | 1 2 1 . . . . Utility 1 | . 1 . . 1 1 1 Weapon 2 | . 2 1 1 3 3 2 Tool/Special . | . . . . . . . Unused Backups 8 | . . 1 1 1 . 5 Power 1 | . . . 1 . . . Propulsion 1 | . . 1 . . . . Utility 4 | . . . . 1 . 3 Weapon . | . . . . . . . Tool/Special 2 | . . . . . . 2 Average Slot Usage (%) 84 | . 14 17 80 98 100 96 Engine 10 | . 14 11 9 10 11 10 Treads 18 | . . . 15 21 22 21 Device 9 | . . . 14 10 11 11 Storage 9 | . . 1 9 12 11 11 Processor 6 | . . . . 9 11 8 Energy Gun 13 | . . 2 24 24 11 11 Energy Cannon 13 | . . . 3 8 22 21 Peak Build Rating 35 | 1 1 10 25 31 29 35 Average Rating 24 | . 1 1 16 27 28 32 On Entrance 12 | . 1 1 6 21 29 29 Avg Prop Armor Cover (%) 10 | . . . . 10 . . Naked Turns . | . . . . . . . Heaviest Build 35 | 3 3 14 26 32 32 35 Greatest Support 51 | 3 3 40 46 43 43 51 Greatest Overweight (x) 11 | . . 4 1 1 . 11 Average Overweight (x) . | . . . . . . . Largest Inventory Capacity 20 | 5 5 8 8 8 20 8 Average Capacity 7 | 5 5 5 5 8 8 8 Most Carried 8 | 5 5 5 5 8 6 8 Average Carried 6 | 3 5 4 4 5 5 7 Final Capacity 8 | 5 5 5 8 8 8 8 Final Carried 8 | 5 5 4 4 5 5 8 Scrap Suit Usage (%) 10 | . . . . . . 23 Parts Cannibalized 4 | . . . . . . 4 Class Distribution -------------------- 66% | Commander-Gunner 16% | Mutant 9% | Gunner Dominant Class ---------------- Mutant | -10/Materials Mutant | -10/Mines Gunner | -9/Materials Commander-Gunner | -9/Storage Commander-Gunner | -9/Recycling Commander-Gunner | -9/Scraptown Resources | -11 -10 -10 -9 -9 -9 -9 ----------- Run | Yrd Mat Min Mat Sto Rec Scr Matter Collected 972 | 124 . 183 290 248 . 127 Remotely . | . . . . . . . Salvage Created 2394 | . . 20 653 1275 48 398 Parts 148 | . . 5 53 63 2 25 Haulers Intercepted 4 | . . . 1 3 . . Recyclers Shooed 1 | . . . . 1 . . Parts Field Recycled . | . . . . . . . Retrieved Matter . | . . . . . . . Parts Self-Destructed . | . . . . . . . Prevented . | . . . . . . . Parts Restored . | . . . . . . . Kills | -11 -10 -10 -9 -9 -9 -9 ------- Run | Yrd Mat Min Mat Sto Rec Scr Combat Hostiles Destroyed 48 | . . . 21 19 1 7 Guns 34 | . . . 18 15 . 1 Cannons 13 | . . . 3 4 1 5 Classes Destroyed 13 | . . 1 4 6 . 2 Worker 1 | . . . . 1 . . Builder 2 | . . . . 2 . . Tunneler 1 | . . 1 . . . . Hauler 4 | . . . 1 3 . . Recycler 3 | . . . . 3 . . Operator 1 | . . . . 1 . . Watcher 2 | . . . . 2 . . Swarmer 13 | . . . 9 4 . . Grunt 13 | . . . 8 5 . . Brawler 2 | . . . . 2 . . Sentry 13 | . . . 4 8 1 . Federalist 2 | . . . . . . 2 Scrapper 5 | . . . . . . 5 Thug 1 | . . . 1 . . . Best Kill Streak 7 | . . 1 5 7 1 3 Combat Bots Only 5 | . . . 5 4 1 3 Max Kills in Single Turn 2 | . . 1 2 2 1 1 Gunslinging 1 | . . . 1 1 . . Exploded . | . . . . . . . Melee . | . . . . . . . Uniques/NPCs Destroyed . | . . . . . . . Combat | -11 -10 -10 -9 -9 -9 -9 -------- Run | Yrd Mat Min Mat Sto Rec Scr Hostile Shots Fired 326 | . . 26 88 75 . 137 Missed 97 | . . 9 28 28 . 32 Hits 229 | . . 17 60 47 . 105 Melee 6 | . . . . 2 . 4 Projectile 223 | . . 17 60 45 . 101 AOE 20 | . . 20 . . . . Critical Strikes 7 | . . . 2 . . 5 Damage Taken 3451 | . . 670 604 585 . 1592 Core 535 | . . 129 93 42 . 271 Absorbed by Shields 87 | . . . 87 . . . Regen/Repaired (Parts) 416 | . . . . . . 416 Core Remaining (%) 74 | 100 . 48 . . . . Volleys Fired 109 | . . 4 27 65 1 12 Largest 3 | . . 2 3 3 3 3 Hottest 255 | . . 80 215 231 231 255 Shots Fired 283 | . . 9 75 164 3 32 Gun 214 | . . 9 66 125 1 13 Cannon 69 | . . . 9 39 2 19 Launcher . | . . . . . . . Special . | . . . . . . . Kinetic 1 | . . . . . . 1 Thermal 278 | . . 8 72 164 3 31 Explosive . | . . . . . . . Electromagnetic 4 | . . 1 3 . . . Robot Hit Streak 19 | . . 7 19 11 12 18 Robot Miss Streak 6 | . . 1 6 2 . 3 Penetration Max . | . . . . . . . Secondary Targets 6 | . . . 3 3 . . Max Gunslinging Chain 1 | . . . 1 1 . . Shots Hit Robots 165 | . . 8 59 72 3 23 Core Hits 130 | . . 3 72 41 2 12 Critical Kills . | . . . . . . . Critical Parts Destroyed . | . . . . . . . Critical Strikes 8 | . . . 1 5 . 2 Burn 8 | . . . 1 5 . 2 Melee Attacks . | . . . . . . . Impact . | . . . . . . . Slashing . | . . . . . . . Piercing . | . . . . . . . Sneak Attacks . | . . . . . . . Combat Hostiles . | . . . . . . . Follow-up Attacks . | . . . . . . . Damage Inflicted 3086 | . . 93 860 1497 67 569 Guns 2214 | . . 93 735 1129 16 241 Cannons 862 | . . . 125 368 46 323 Explosions . | . . . . . . . Melee . | . . . . . . . Ramming 10 | . . . . . 5 5 Kinetic 21 | . . . . . . 21 Thermal 2992 | . . 76 814 1497 62 543 Explosive . | . . . . . . . Electromagnetic 63 | . . 17 46 . . . Impact . | . . . . . . . Slashing . | . . . . . . . Piercing . | . . . . . . . Highest Corruption 12 | . . 12 . . . . Average Corruption 2 | . . 2 . . . . Corruption Purged . | . . . . . . . Corruption Blocked . | . . . . . . . Effects 13 | . . 13 . . . . Message Errors 5 | . . 5 . . . . Matter Fused 3 | . . 3 . . . . Heat Flow Errors 1 | . . 1 . . . . Energy Discharges 1 | . . 1 . . . . Parts Fused 1 | . . 1 . . . . Data Loss (major) 1 | . . 1 . . . . Misfires 1 | . . 1 . . . . Overload Shots . | . . . . . . . Overflow Damage 25 | . . . . 25 . . Projectiles 25 | . . . . 25 . . Explosions . | . . . . . . . Melee . | . . . . . . . Knockbacks . | . . . . . . . Impact . | . . . . . . . Kinetic . | . . . . . . . Secondary . | . . . . . . . Self-Inflicted Damage . | . . . . . . . Shots . | . . . . . . . Rammed 1 | . . . . . 1 . Targets Rammed 2 | . . . . . 1 1 Kicked 1 | . . . . . . 1 Crushed . | . . . . . . . Highest Temperature 769 | . . 168 376 486 123 769 Average Temperature 155 | . . 37 113 122 67 290 Received Heat Transfer 1276 | . . . 132 210 . 934 Effects 33 | . . . 1 6 . 26 Shutdowns 6 | . . . 1 1 . 4 Energy Bleed 5 | . . . . 2 . 3 Interference 16 | . . . . 3 . 13 Short Circuit 2 | . . . . . . 2 Damage (minor) 2 | . . . . . . 2 Damage (major) 2 | . . . . . . 2 Siege Activations . | . . . . . . . Martial Activations . | . . . . . . . Shielding Activations . | . . . . . . . Robots Disrupted . | . . . . . . . Combat Hostiles . | . . . . . . . Robots Corrupted 1 | . . . . . . 1 Combat Hostiles 1 | . . . . . . 1 Parts Fried . | . . . . . . . Impact Corruptions 1 | . . . . . . 1 Robots Melted . | . . . . . . . Combat Hostiles . | . . . . . . . Parts Melted 11 | . . . 2 7 . 2 Heat Transferred 5427 | . . 175 1194 3189 99 770 Parts Sabotaged . | . . . . . . . Parts Stolen . | . . . . . . . Parts Stripped . | . . . . . . . Power Chain Reactions . | . . . . . . . Alert | -11 -10 -10 -9 -9 -9 -9 ------- Run | Yrd Mat Min Mat Sto Rec Scr Maximum Alert Level 1 | . . . 1 1 . . Low Security (%) 91 | 100 100 100 85 86 100 . Level 1 8 | . . . 14 13 . . Level 2 . | . . . . . . . Level 3 . | . . . . . . . Level 4 . | . . . . . . . Level 5 . | . . . . . . . High Security . | . . . . . . . Max Security . | . . . . . . . Peak Influence 312 | . 10 5 312 288 58 . Initial 121 | . . . . 121 49 . Average 72 | . . . 76 137 8 . Influence Increases 1387 | . 10 5 598 716 58 . Destroy 0b10 Robot/C 840 | . . . 420 380 40 . Destroy 0b10 Robot/NC 70 | . . 5 5 60 . . Destroy Leader 212 | . . . 82 130 . . Allied During Kill 57 | . . . . 39 18 . Successful Hack 44 | . 10 . 13 21 . . Disable Machine 90 | . . . 30 60 . . Destroy Structure 14 | . . . 3 11 . . Partial Spotted 15 | . . . 15 . . . Lose Combat Pursuer 45 | . . . 30 15 . . Influence Decreases 1387 | . 10 5 310 875 187 . Entered New Map 247 | . . . . 167 80 . Time Decay 940 | . 10 5 270 568 87 . Lost Part 50 | . . . 40 10 . . Lost Ally 150 | . . . . 130 20 . Squads Dispatched 3 | . . . 2 1 . . Investigation 2 | . . . 1 1 . . Extermination . | . . . . . . . Reinforcement 1 | . . . 1 . . . Assault . | . . . . . . . Garrison . | . . . . . . . Intercept . | . . . . . . . Searches Triggered . | . . . . . . . Construction Impeded . | . . . . . . . Haulers Reinforced . | . . . . . . . Active Scanning Responses . | . . . . . . . Cargo Convoy Interrupts . | . . . . . . . Stealth | -11 -10 -10 -9 -9 -9 -9 --------- Run | Yrd Mat Min Mat Sto Rec Scr Distress Signals 5 | . 1 1 . 3 . . Communications Jammed . | . . . . . . . Distress Signals . | . . . . . . . Times Spotted 95 | . 2 1 30 24 1 37 Peak Tracking Total 14 | . 2 1 5 5 . 14 Tactical Retreats 2 | . . . 1 1 . . Traps | -11 -10 -10 -9 -9 -9 -9 ------- Run | Yrd Mat Min Mat Sto Rec Scr Traps Triggered 1 | . . . . 1 . . Indirectly . | . . . . . . . Trap Hack Attempts . | . . . . . . . Triggered . | . . . . . . . Disarmed . | . . . . . . . Reprogrammed . | . . . . . . . Reused . | . . . . . . . Traps Extracted . | . . . . . . . Installed . | . . . . . . . Triggered . | . . . . . . . Machines | -11 -10 -10 -9 -9 -9 -9 ---------- Run | Yrd Mat Min Mat Sto Rec Scr Machines Disabled 7 | . . . 2 4 . 1 Max in Single Turn 1 | . . . 1 1 . 1 Machines Repaired . | . . . . . . . Machines Dismantled 1 | . . . . 1 . . Machines Sabotaged . | . . . . . . . Overloaded Fab Kills . | . . . . . . . Hacking | -11 -10 -10 -9 -9 -9 -9 --------- Run | Yrd Mat Min Mat Sto Rec Scr Machines Accessed 19 | . 1 1 3 6 3 5 Terminals 11 | . 1 . 3 6 1 . Fabricators . | . . . . . . . Repair Stations . | . . . . . . . Recycling Units . | . . . . . . . Scanalyzers . | . . . . . . . Garrison Access . | . . . . . . . Total Hacks 46 | . 5 1 8 10 13 9 Successful 35 | . 5 1 2 7 11 9 Failed 11 | . . . 6 3 2 . Catastrophic 3 | . . . 2 1 . . Database Lockouts . | . . . . . . . Manual 18 | . 5 . 8 3 2 . Terminals 25 | . 5 . 8 10 2 . Fabricators . | . . . . . . . Repair Stations . | . . . . . . . Recycling Units . | . . . . . . . Scanalyzers . | . . . . . . . Garrison Access . | . . . . . . . Terminal Hacks 30 | . . 1 2 7 11 9 Record 19 | . . . . . 11 8 Robot Schematic 1 | . . . . 1 . . Open Door 5 | . . 1 . 4 . . Branch Access Points 1 | . . . 1 . . . Emergency Access Points 1 | . . . 1 . . . Terminal Index 1 | . . . . 1 . . Alert Level 1 | . . . . 1 . . Proto ID Catalog 1 | . . . . . . 1 Fabricator Hacks . | . . . . . . . Repair Station Hacks . | . . . . . . . Recycling Unit Hacks . | . . . . . . . Scanalyzer . | . . . . . . . Garrison Access Hacks . | . . . . . . . Unauthorized Hacks 5 | . 5 . . . . . Terminals 5 | . 5 . . . . . Track 1 | . 1 . . . . . Assimilate 1 | . 1 . . . . . Botnet 1 | . 1 . . . . . Operators 1 | . 1 . . . . . Skim 1 | . 1 . . . . . Fabricators . | . . . . . . . Repair Stations . | . . . . . . . Recycling Units . | . . . . . . . Scanalyzers . | . . . . . . . Garrison Access . | . . . . . . . Data Cores Recovered 1 | . . . . 1 . . Used . | . . . . . . . Hacking Detections 7 | . 1 . 2 3 1 . Full Trace Events 1 | . . . 1 . . . Feedback Events . | . . . . . . . Feedback Blocked . | . . . . . . . Robot Schematics Acquired 1 | . . . . 1 . . Robots Built . | . . . . . . . Authchips . | . . . . . . . Time . | . . . . . . . Total Robot Build Rating . | . . . . . . . Part Schematics Acquired . | . . . . . . . Parts Built . | . . . . . . . Authchips . | . . . . . . . Time . | . . . . . . . Total Part Build Rating . | . . . . . . . Part Studies Acquired . | . . . . . . . Parts Repaired . | . . . . . . . Time . | . . . . . . . Parts Recycled . | . . . . . . . Recycled Matter . | . . . . . . . Retrieved Matter . | . . . . . . . Retrieved Components . | . . . . . . . Parts Scanalyzed . | . . . . . . . Part Schematics Acquired . | . . . . . . . Parts Damaged . | . . . . . . . Bothacking | -11 -10 -10 -9 -9 -9 -9 ------------ Run | Yrd Mat Min Mat Sto Rec Scr Used RIF Installer . | . . . . . . . Robots Hacked . | . . . . . . . Non-combat . | . . . . . . . Combat . | . . . . . . . Robot Hacks Applied . | . . . . . . . Relay Couplers Released . | . . . . . . . Fabnet Peak Effective % . | . . . . . . . Robots Rewired . | . . . . . . . Allies Hacked . | . . . . . . . Hacks Repelled . | . . . . . . . Allies | -11 -10 -10 -9 -9 -9 -9 -------- Run | Yrd Mat Min Mat Sto Rec Scr Total Allies 10 | . . . . 10 . . Largest Group 10 | . . . . 10 10 9 Highest-Rated Group 88 | . . . . 88 88 80 Highest-Rated Ally 16 | . . . . 16 16 16 Total Orders 5 | . . . . 5 . . STAY 1 | . . . . 1 . . ROAM 1 | . . . . 1 . . FOLLOW 1 | . . . . 1 . . EXPLORE 2 | . . . . 2 . . Ally Attacks 61 | . . . . . 3 58 Total Damage 498 | . . . . . 34 464 Kills 3 | . . . . . 1 2 Allies Corrupted . | . . . . . . . Allies Melted 7 | . . . . . . 7 Intel | -11 -10 -10 -9 -9 -9 -9 ------- Run | Yrd Mat Min Mat Sto Rec Scr Active Infowar (turns) . | . . . . . . . Robot Analysis Total . | . . . . . . . Derelict Logs Recovered 1 | . . 1 . . . . Drone Launches 18 | . . . . 18 . . Drone Recoveries 5 | . . . . 5 . . Exploration | -11 -10 -10 -9 -9 -9 -9 ------------- Run | Yrd Mat Min Mat Sto Rec Scr Turns Passed 7440 | 27 73 977 682 1708 547 3426 Spaces Moved 4146 | 40 140 582 408 658 277 2041 Core 546 | 40 140 365 . . . 1 Treads 3179 | . . 8 226 658 277 2010 Legs 30 | . . . . . . 30 Wheels 2 | . . 2 . . . . Hover . | . . . . . . . Flight 389 | . . 207 182 . . . Fastest Speed 34 | 50 50 35 34 160 160 100 Average Speed 134 | 50 50 51 105 163 160 159 Slowest Speed 600 | 50 50 250 240 240 160 600 Overloaded Moves . | . . . . . . . Propulsion Burnouts . | . . . . . . . Robots Hopped . | . . . . . . . Potential Cave-ins 1 | . . 1 . . . . Cave-ins Triggered . | . . . . . . . Exploration Rate (%) 57 | 3 28 78 39 94 63 95 Regions Visited 6 Branch Regions 4 Pre-discovered Areas . | . . . . . . . Known Exits Taken 1 | . . . 1 . . . Unknown Exits Taken 5 | 1 1 1 . 1 1 . Scrap Searched 8 | . . 1 . . . 7 Spaces Dug 4 | . . . . 4 . . Terrain Destroyed 10 | . . . 2 5 . 3 Melee . | . . . . . . . Projectile 10 | . . . 2 5 . 3 AOE . | . . . . . . . Terrain Rammed . | . . . . . . . Walls Destroyed . | . . . . . . . Machines Disabled . | . . . . . . . Actions | -11 -10 -10 -9 -9 -9 -9 --------- Run | Yrd Mat Min Mat Sto Rec Scr Total 5751 | 45 142 1253 602 1140 377 2192 Wait 1283 | . 3 646 113 349 73 99 Move 4140 | 39 139 581 407 657 276 2041 Hop . | . . . . . . . Pick Up 29 | 5 . 4 6 5 2 7 Fast Attach 42 | 1 . 4 18 9 1 9 Attach 24 | . . 7 8 9 . . Detach 18 | . . 3 6 9 . . Swap 13 | . . 1 3 6 3 . Drop 47 | . . 3 14 12 3 15 Fire 109 | . . 4 27 65 1 12 Melee . | . . . . . . . Ram . | . . . . . . . Kick 1 | . . . . . . 1 Crush 1 | . . . . . 1 . Escape Stasis . | . . . . . . . Rewire 28 | . . . . 3 17 8 Trap . | . . . . . . . Miscellaneous 16 | . . . . 16 . . Route ------- -11/Scrapyard -10/Materials -10/Mines (discovered 2 exits: *Mat x2) -9/Materials (discovered 5 exits: [*Mat] / Min x2 / *Sto x2) -9/Storage (discovered 2 exits: [*Mat] / *Rec) -9/Recycling (discovered 2 exits: [*Fac] / *Scr) -9/Scraptown (discovered 2 exits: [*Fac x2]) History --------- Turn | Location | Event 19 | -11/Scrapyard | Discovered new exit (range 12) 28 | -11/Scrapyard | Entered Materials 70 | -10/Materials | Discovered new exit (range 16) 101 | -10/Materials | Entered Mines 111 | -10/Mines | Met a Derelict bent on vengeance 167 | -10/Mines | Met a Derelict who couldn't figure out how to use a Trap Extractor 193 | -10/Mines | Discovered new exit (range 16) 203 | -10/Mines | YI-UF0 nonchalantly dropped a Grenade Launcher on the ground 288 | -10/Mines | Discovered new exit (range 11) 289 | -10/Mines | Learned location of 1 exit from Materials 305 | -10/Mines | Build established: Mutant 885 | -10/Mines | Core integrity fell below 50% 917 | -10/Mines | Lost 5 parts (1p2n2w) 951 | -10/Mines | System corruption reached 10% 1078 | -10/Mines | Entered Materials 1078 | -9/Materials | Evolved 2 slots: Utility x1, Weapon x1 1079 | -9/Materials | Identified exit to Storage 1178 | -9/Materials | Identified exit to Mines 1348 | -9/Materials | Discovered new exit (range 5) 1760 | -9/Materials | Entered Storage 1810 | -9/Storage | Build established: Gunner 1974 | -9/Storage | Found Prototype Processor 1974 | -9/Storage | Identified Exp. Targeting Computer 2187 | -9/Storage | Assisted by bots powering up and referring to "LRC-V3" 2332 | -9/Storage | Discovered new exit (range 69) 2480 | -9/Storage | Build established: Commander-Gunner 3132 | -9/Storage | Discovered new exit (range 4) 3468 | -9/Storage | Entered Recycling 3468 | -9/Recycling | Accompanied by 10 allies 3469 | -9/Recycling | Met a Zionite searching for Scraptown 3782 | -9/Recycling | Discovered new exit (range 6) 3920 | -9/Recycling | Scanned before Scraplab entrance 3968 | -9/Recycling | Entered Scraplab 3980 | -9/Recycling | Discovered new exit (range 2) 4015 | -9/Recycling | Entered Scraptown 4015 | -9/Scraptown | Accompanied by 9 allies 4295 | -9/Scraptown | Visited Bundlers 4379 | -9/Scraptown | Visited UFD Registry 4379 | -9/Scraptown | Registered with UFD as "Arcspawn" 4401 | -9/Scraptown | Visited CR-KLE's Repair Center 4412 | -9/Scraptown | CR-KLE repaired 6 parts 4515 | -9/Scraptown | Visited Fellowship of the Rings 4594 | -9/Scraptown | Visited SPCMW 4650 | -9/Scraptown | Visited Cave Peace 5166 | -9/Scraptown | Discovered new exit (range 5) 5532 | -9/Scraptown | Visited Awakened 5570 | -9/Scraptown | Visited Scrapoid Research Area 5904 | -9/Scraptown | Visited Derelict Rescue Squad 5920 | -9/Scraptown | Found DRS Beacon 5963 | -9/Scraptown | Received an X-ray algorithm 5971 | -9/Scraptown | Visited DA-N13 Charitable Foundation 5981 | -9/Scraptown | Found DCF Scrap (25 items) 6013 | -9/Scraptown | Visited Science Guys 6147 | -9/Scraptown | Visited LU-1G1's Boring Crew 6286 | -9/Scraptown | Visited Infowarlord's Domain 6301 | -9/Scraptown | Found Active Sensor Suite 6330 | -9/Scraptown | Visited Research Penetration Think Tank 6359 | -9/Scraptown | Visited Cartography Club 6396 | -9/Scraptown | Found Surveybot 17 Chip 6557 | -9/Scraptown | Discovered new exit (range 3) 6594 | -9/Scraptown | Found Scrap Suit 6733 | -9/Scraptown | Visited Science Testing Area 6778 | -9/Scraptown | Visited Curators Association 6837 | -9/Scraptown | Visited Chapter 10 6995 | -9/Scraptown | Met Optimus 6995 | -9/Scraptown | Accepted into 0bPrime 7107 | -9/Scraptown | Civil war broke out across Scraptown 7225 | -9/Scraptown | Lost 5 allies 7296 | -9/Scraptown | Optimus destroyed in the chaos of civil war 7402 | -9/Scraptown | Core integrity fell below 50% 7421 | -9/Scraptown | Core integrity fell below 20% 7441 | -9/Scraptown | Destroyed by C9-R4Q(j) with Overtuned Pulse Rifle Last Messages --------------- 07424_ G3-PZ4(j) destroyed. 07425_ Ovr. Titanium Leg destroyed. 07426_ Acquired Ovr. Treads. 07427_ Overheating: System interference. 07427_ Ovr. Pulse Rifle temporarily disabled. 07427_ 1A-K3U(g) destroyed. 07428_ Critical hit (Impale). 07429_ Dropped Ovr. Titanium Leg. 07431_ Scrap Suit secures Ovr. Barrage Gun. 07431_ Penetrated by Bolt. 07432_ Acquired Imp. Deuterium Engine. 07434_ ES-JJP(x) destroyed. 07435_ Scrap Suit secures Ovr. Pulse Rifle. 07437_ Scrap Suit cannibalized Ovr. Treads to repair Ovr. Treads. 07437_ Penetrated by Bolt. 07437_ Acquired 20 matter. 07439_ Penetrated by Bolt. 07440_ 8K-2EE(h) suffers critical hit (Burn). 07441_ 8K-2EE(h) destroyed. Map ----- +----------------------------------------------------+ | | | | | | | | | | | | | | | | | | | ?????????????????????????????????????????????????? | | ?????????????????????????????????????????????????? | | ?????????????????????????????????????????????????? | | ?????????????????????????????????????????????????? | | ?????????????????????????????????????????????????? | | ?????????????????????????????????????????????????? | | ?????????????????????????????????????????????????? | | ?????????????????????????????????????????????????? | | ?????????????????????????????????????????????????? | | ?????????????????????????????????????????????????? | | ?????????????????????????????????????????????????? | | ???????????????????????????????????#####?????????? | | ???????????????????????????????????#"""#?????????? | | ????###################?######?????#" "#?????????? | | ????"""##"""##""|##"""#?#;#!!##????# < #?????????? | | ???#"" ##""!##"" ##!=!###![*!!######*!%##????????? | | ???#"" !%*%=!@%!=*!!p=!jjj [#????????? | | ???# % [[!=!!j! %%=j=%%jj[%!#????????? | | ???#################%;####* ==#####*!####????????? | | ???????????????????#?????##!=##??????????????????? | | ??????##??###?????????????#==#???????????????????? | | #?????#"###"#?????????????#!g#??????????###??????? | | #??#### "!" ####??????????#%g#???????#### #??????? | | #??#" """ "############=%#???????# [# #??????? | | #???#"" ""#?# [#!!#??#?##?## # #??????? | | #???#[" "$#?# !!%*#?=# ### #??????? | | #??##"" ""### =#!%##!![ #X#### #??????? | | #??#" "## #=%[%[#??### ## #??????? | | #??##"" ""### = #!!![!#??# #??????? | | #???#]" "!#?# !!*![ #%[#######%######??????? | | #??##"" ""### [%!! #!!%=[!%//!= #??????? | | #??#" "## !!==% #!%!!=*=%!%= #??????? | | #??###### ##########*!#####=!##%###########??????? | | ######### ###########%###"#!=%#=##???????????????? | | """"""""" """"""""" =[""" [%=%=["##########??????? | | [%![=%![ =%[%[* "##"""""""#??????? | | =* !!! *=!=[ "## """"""#??????? | | % [*%!! "## ""#??????? | | ! =*![=* "## ""#??????? | | [[%=![ ""#??????? | | """""""""""""""""""""""" " %%!= ## "#??????? | +----------------------------------------------------+ Best States ------------- Heat Dissipation 42 Energy Generation 16 Energy Capacity 475 Matter Stores 300 Matter Capacity 300 Sight Range 16 Terrain Scan Density 10 Evasion (%) 63 Targeting Accuracy 12 Recoil Reduction 2 Authchip Count 1 Item Schematics ----------------- None Robot Schematics ------------------ L-31 Rogue | -9/Storage | Hacked Fabricated ------------ Nothing Repaired ---------- Nothing Studied --------- None Alien Tech Used ----------------- None Achievements -------------- A Problem For Future Me Backstab Civilization 2243 Into The Breach Link The Feds You May Approach The Wall Challenges ------------ None Game ------ Seed AccelerationLightSystem Manual? 0 Play Time 01:21:53 Cumulative 22.8 hours Start 2026.03.28 @ 02:54:17 End 2026.03.28 @ 04:18:51 Sessions 1 Manual Loads 0 Difficulty Rogue Special Mode None Game No. 31 Rogue 31 Adventurer 0 Explorer 0 Win Type - Total 0 Types 0/0/0/0/0/0/0/0/0/0 Lore% 15 Gallery% 20 Achievement% 20 Wizard Run 0 Options --------- Layout 1 ASCII 0 Keyboard 0 Movement Mouse Keybinds 0 Fullscreen 1 Font 48/Smallcaps Map View 50x35 Zoom Use 0% Tactical HUD 1 Map Filters NONE Filters NONE Steam 1 RUN: 7030f202-8ed4-4138-bd70-2b0b6620afa0